bitfinex-derivatives/quotes_SOLF0:USTF0_20250301
["timestamp","ask_amount","ask_price","bid_price","bid_amount"]
[1740854253353,0.046171,140.55,140.47,120.67269262]
[1740854253551,0.046171,140.55,140.54,7.1184]
[1740854255657,1.8407,140.61,140.52,10.72]
[1740854255858,1.8357,140.65,140.53,1.9377]
[1740854256061,165.0108394,140.67,140.53,1.9377]
[1740854256258,7.1134,140.65,140.53,1.9377]
[1740854256458,7.1134,140.65,140.54,4.77013457]
[1740854256755,0.05464426,140.61,140.6,7.1154]
[1740854256964,7.114,140.64,140.6,7.1154]
[1740854257267,0.05376609,140.62,140.6,7.1154]
[1740854257663,0.05376609,140.62,140.61,7.1152]
[1740854262659,1.9935,140.67,140.66,7.1127]
[1740854264169,1.9935,140.67,140.65,7.15889233]
[1740854264473,1.9935,140.67,140.65,0.04589233]
[1740854264661,9.1062,140.67,140.65,0.04589233]
[1740854264862,1.9935,140.67,140.65,0.04589233]
[1740854265484,7.1127,140.66,140.65,0.04589233]
[1740854265771,7.1127,140.66,140.63,7.1138]
[1740854265969,7.1127,140.66,140.62,7.1144]
[1740854266869,7.1127,140.66,140.63,0.04577087]
[1740854267071,0.04974289,140.65,140.63,0.04577087]
[1740854267575,7.16294289,140.65,140.63,0.04577087]
[1740854268874,0.04974289,140.65,140.56,1.8662]
[1740854269070,1.18764746,140.66,140.56,12.5062]
[1740854269472,7.1145,140.63,140.59,7.1158]
[1740854269877,12.6335,140.67,140.59,7.1158]
[1740854270072,7.15988363,140.62,140.6,0.02595842]
[1740854270373,12.6335,140.67,140.6,0.02595842]
[1740854270573,0.04523803,140.62,140.6,0.02595842]
[1740854270765,7.1152,140.61,140.6,0.02595842]
[1740854271573,7.1165,140.59,140.54,10.64]
[1740854271773,7.1165,140.59,140.55,7.118]
[1740854271973,7.1165,140.59,140.52,12.5804]
[1740854272369,7.1165,140.59,140.52,1.9404]
[1740854272569,7.1165,140.59,140.52,12.5804]
[1740854272781,0.0470554,140.57,140.52,12.5804]
[1740854273380,0.0470554,140.57,140.56,7.1177]
[1740854274179,0.0470554,140.57,140.54,7.1184]
[1740854274382,0.0470554,140.57,140.5,261.14]
[1740854274681,0.0470554,140.57,140.5,10.62]
[1740854274876,7.118,140.56,140.52,7.1195]
[1740854275782,7.118,140.56,140.5,10.62]
[1740854276077,7.118,140.56,140.49,164.76655831]
[1740854276078,7.118,140.56,140.49,175.38655831]
[1740854276377,7.118,140.56,140.53,7.1192]
[1740854276583,0.04649581,140.54,140.53,7.1192]
[1740854287985,1.9634,140.6,140.51,14.2405]
[1740854288184,1.9634,140.6,140.52,1.3818]
[1740854289082,0.05024151,140.57,140.55,0.04649581]
[1740854289277,0.05024151,140.57,140.56,7.1178]
[1740854289278,4.151e-05,140.57,140.56,7.1178]
[1740854291185,4.151e-05,140.57,140.55,17.74449581]
[1740854291494,4.151e-05,140.57,140.55,10.62649581]
[1740854291685,4.151e-05,140.57,140.56,7.1178]
[1740854296792,4.151e-05,140.57,140.55,17.74429581]
[1740854297191,4.151e-05,140.57,140.55,0.04649581]
[1740854297389,9.10454151,140.57,140.55,0.04649581]
[1740854297589,1.98694151,140.57,140.55,0.04649581]
[1740854297997,7.1178,140.56,140.55,0.04649581]
[1740854298297,1.98694151,140.57,140.55,0.04649581]
[1740854298897,1.98694151,140.57,140.49,415.36655831]
[1740854299102,1.98694151,140.57,140.49,425.94655831]
[1740854299295,1.8685,140.56,140.49,425.94655831]
[1740854299496,1.8685,140.56,140.51,7.12]
[1740854299994,7.1186,140.55,140.51,7.12]
[1740854300197,7.1186,140.55,140.52,0.04835281]
[1740854300198,0.04704284,140.55,140.52,0.04835281]
[1740854300494,0.04704284,140.55,140.54,7.1188]
[1740854300994,0.04704284,140.55,140.52,0.04835281]
[1740854302086,0.04704284,140.55,140.54,7.1188]
[1740854304197,1.9928,140.61,140.54,10.56]
[1740854304498,1.9928,140.61,140.59,7.1158]
[1740854304994,1.9928,140.61,140.54,10.56]
[1740854305303,1.9928,140.61,140.6,7.1157]
[1740854315195,0.04945335,140.62,140.61,7.1152]
[1740854316295,0.04945335,140.62,140.59,7.16107182]
[1740854317309,10.56945335,140.62,140.51,9.83963503]
[1740854317508,10.52,140.62,140.52,4.79088159]
[1740854317708,7.1164,140.59,140.51,9.83963503]
[1740854317911,7.1164,140.59,140.52,44.14951248]
[1740854318101,7.1164,140.59,140.53,4.79097236]
[1740854318302,7.1164,140.59,140.54,7.1185]
[1740854318502,0.05191357,140.57,140.55,0.04720684]
[1740854320209,7.16941357,140.57,140.55,0.04720684]
[1740854320509,0.05191357,140.57,140.55,0.04720684]
[1740854323210,7.16921357,140.57,140.55,0.04720684]
[1740854324800,7.1178,140.56,140.55,0.04720684]
[1740854325004,0.05191357,140.57,140.5,425.80498953]
[1740854325205,0.05191357,140.57,140.5,182.36538953]
[1740854325404,0.05191357,140.57,140.5,171.88538953]
[1740854325712,0.05191357,140.57,140.5,164.76498953]
[1740854326313,7.1187,140.55,140.51,7.12]
[1740854328409,0.05191357,140.57,140.51,7.12]
[1740854328707,7.1194,140.53,140.48,11.04582544]
[1740854328913,4.0044,140.56,140.49,4.79671844]
[1740854329115,7.17228388,140.52,140.49,7.1211]
[1740854330211,7.17228388,140.52,140.48,11.04582544]
[1740854330513,7.17228388,140.52,140.5,7.1207]
[1740854331118,7.17228388,140.52,140.49,7.121]
[1740854331418,0.05238388,140.52,140.48,0.56582544]
[1740854331619,0.05238388,140.52,140.5,7.1205]
[1740854331917,0.05238388,140.52,140.48,0.56582544]
[1740854332116,0.05238388,140.52,140.51,7.1203]
[1740854337525,8.388e-05,140.52,140.51,7.1203]
[1740854337820,5.6024,140.59,140.55,7.1179]
[1740854338321,7.117,140.58,140.55,7.1179]
[1740854338914,7.1174,140.57,140.55,7.16589344]
[1740854340920,7.16737397,140.58,140.56,7.1175]
[1740854344128,7.16737397,140.58,140.55,0.04799344]
[1740854344325,7.16737397,140.58,140.55,7.16599344]
[1740854344518,7.16737397,140.58,140.55,0.04799344]
[1740854345430,7.16737397,140.58,140.56,7.1177]
[1740854346724,7.1173,140.57,140.55,7.16599344]
[1740854346920,0.05037397,140.58,140.55,0.04799344]
[1740854347115,0.05037397,140.58,140.49,10.48]
[1740854347319,5.6024,140.59,140.49,10.48]
[1740854347527,7.1195,140.53,140.49,10.48]
[1740854348230,0.05015716,140.52,140.5,7.1205]
[1740854348428,0.05015716,140.52,140.49,10.48]
[1740854348730,0.05015716,140.52,140.51,7.1203]
[1740854367439,5.716e-05,140.52,140.51,11.92519908]
[1740854368543,5.716e-05,140.52,140.51,11.92218225]
[1740854370641,5.716e-05,140.52,140.51,11.92112555]
[1740854372639,5.716e-05,140.52,140.51,11.91971562]
[1740854375850,5.716e-05,140.52,140.51,15.47971562]
[1740854378352,5.716e-05,140.52,140.51,11.91971562]
[1740854378653,5.716e-05,140.52,140.51,15.47971562]
[1740854379057,5.716e-05,140.52,140.51,31.67433356]
[1740854380742,5.716e-05,140.52,140.51,31.66304296]
[1740854381549,5.716e-05,140.52,140.51,21.82340793]
[1740854385461,1.8675,140.63,140.62,7.1147]
[1740854387656,0.0479579,140.64,140.61,0.04487641]
[1740854387862,0.0479579,140.64,140.63,7.1142]
[1740854400568,0.0479579,140.64,140.61,0.04487641]
[1740854400762,1.9293579,140.64,140.55,160.43076263]
[1740854401073,1.8814,140.64,140.57,10.46]
[1740854401976,0.05160659,140.62,140.57,10.46]
[1740854403467,0.05160659,140.62,140.61,7.1148]
[1740854407288,0.05160659,140.62,140.57,10.46]
[1740854407789,0.05160659,140.62,140.6,7.1154]
[1740854407988,2.01840659,140.62,140.6,7.1154]
[1740854408200,2.01840659,140.62,140.61,7.1152]
[1740854409694,2.01840659,140.62,140.6,7.1155]
[1740854409900,2.01840659,140.62,140.57,10.46]
[1740854410196,2.01840659,140.62,140.61,7.1152]
[1740854421905,0.05160659,140.62,140.61,7.1152]
[1740854425097,6.59e-06,140.62,140.61,11.90995656]
[1740854426509,6.59e-06,140.62,140.61,11.9102814]
[1740854428408,6.59e-06,140.62,140.61,11.9114575]
[1740854434509,6.59e-06,140.62,140.61,18.7587575]
[1740854438116,6.59e-06,140.62,140.61,25.11590267]
[1740854441108,6.59e-06,140.62,140.61,54.63480776]
[1740854441302,6.59e-06,140.62,140.61,56.0571817]
[1740854442115,1.9621,140.73,140.61,56.0571817]
[1740854442417,1.9621,140.73,140.62,15.2562575]
[1740854442614,1.9621,140.73,140.68,7.1114]
[1740854442817,1.9621,140.73,140.64,4.7962575]
[1740854443016,7.1103,140.71,140.67,7.1118]
[1740854443313,0.05220502,140.7,140.67,7.16356239]
[1740854444018,0.05220502,140.7,140.67,0.05176239]
[1740854444220,7.16310502,140.7,140.67,0.05176239]
[1740854444414,0.05220502,140.7,140.67,0.05176239]
[1740854444615,0.05220502,140.7,140.67,7.16366239]
[1740854444806,0.05220502,140.7,140.67,0.05176239]
[1740854445918,7.1117,140.68,140.67,0.05176239]
[1740854446420,3.6751,140.69,140.63,164.62376052]
[1740854446617,1.8303,140.67,140.63,164.62376052]
[1740854446822,1.8303,140.67,140.62,10.46]
[1740854447521,0.05247037,140.66,140.62,10.46]
[1740854447818,0.05247037,140.66,140.64,7.1134]
[1740854448024,0.05247037,140.66,140.62,10.46]
[1740854448522,0.05247037,140.66,140.6,10.46]
[1740854448718,7.1141,140.64,140.6,7.1155]
[1740854448920,0.05247037,140.66,140.6,7.1155]
[1740854449420,7.1143,140.63,140.6,7.1155]
[1740854449823,7.16270954,140.63,140.6,7.1155]
[1740854450023,0.04840954,140.63,140.6,7.1155]
[1740854450823,0.04840954,140.63,140.58,175.13676409]
[1740854451122,0.04840954,140.63,140.62,7.1147]
[1740854455030,0.04840954,140.63,140.61,7.115]
[1740854455413,0.04840954,140.63,140.6,7.1155]
[1740854456028,7.16260954,140.63,140.61,7.1152]
[1740854456229,0.04840954,140.63,140.61,7.1152]
[1740854456929,0.04840954,140.63,140.62,7.1147]
[1740854463332,9.54e-06,140.63,140.62,7.1147]
[1740854465732,9.54e-06,140.63,140.62,11.89327191]
[1740854466029,9.54e-06,140.63,140.62,11.8930689]
[1740854473735,9.54e-06,140.63,140.62,11.89727276]
[1740854475334,9.54e-06,140.63,140.62,15.45727276]
[1740854475533,9.54e-06,140.63,140.62,16.93507276]
[1740854477442,9.54e-06,140.63,140.62,13.37507276]
[1740854478241,9.54e-06,140.63,140.62,13.36998087]
[1740854479441,9.54e-06,140.63,140.62,29.56774265]
[1740854481339,9.54e-06,140.63,140.62,33.12523384]
[1740854481843,9.54e-06,140.63,140.62,54.50523384]
[1740854482050,2.0023,140.73,140.72,7.1097]
[1740854482248,2.0023,140.73,140.72,17.5497]
[1740854483047,2.0023,140.73,140.72,14.5223]
[1740854484350,2.02989729,140.74,140.73,7.1092]
[1740854485948,2.02989729,140.74,140.71,0.04643484]
[1740854486147,9.13859729,140.74,140.71,0.04643484]
[1740854486347,2.02989729,140.74,140.71,7.15633484]
[1740854487343,9.13889729,140.74,140.7,7.1104]
[1740854488852,9.13879729,140.74,140.7,7.1104]
[1740854489057,2.02989729,140.74,140.7,7.1104]
[1740854489552,2.02989729,140.74,140.69,10.44]
[1740854490343,0.05309729,140.74,140.69,10.44]
[1740854490755,0.05309729,140.74,140.73,7.1092]
[1740854497865,0.05309729,140.74,140.7,7.1104]
[1740854498058,1.94059729,140.74,140.69,10.44]
[1740854498458,7.1092,140.73,140.7,7.1104]
[1740854499369,1.94059729,140.74,140.7,7.1104]
[1740854499578,7.11,140.72,140.69,17.5511]
[1740854499970,1.94059729,140.74,140.69,17.5511]
[1740854500274,7.1103,140.71,140.69,17.5511]
[1740854500465,7.1103,140.71,140.69,7.1111]
[1740854500666,7.111,140.7,140.67,7.1119]
[1740854500873,1.9125,140.69,140.67,7.1119]
[1740854502169,1.9125,140.69,140.65,10.44]
[1740854502370,1.9125,140.69,140.68,7.1117]
[1740854504471,1.9125,140.69,140.65,10.44]
[1740854504671,1.9125,140.69,140.67,7.1119]
[1740854504871,1.9125,140.69,140.65,10.44]
[1740854506378,1.9125,140.69,140.68,7.1117]
[1740854511775,0.04825209,140.7,140.69,7.1112]
[1740854515793,0.04825209,140.7,140.68,7.1114]
[1740854516187,0.04825209,140.7,140.65,10.44]
[1740854516489,0.04825209,140.7,140.66,7.1125]
[1740854516784,10.44,140.71,140.65,7.1132]
[1740854516985,0.05025206,140.69,140.61,49.81690188]
[1740854517187,0.05025206,140.69,140.62,4.79849205]
[1740854517388,0.05025206,140.69,140.61,49.81690188]
[1740854517686,7.1123,140.67,140.64,7.1133]
[1740854518683,7.113,140.66,140.63,7.114]
[1740854519086,7.16014426,140.66,140.63,7.114]
[1740854519791,7.1133,140.65,140.63,7.114]
[1740854520291,7.114,140.64,140.61,7.115]
[1740854520683,7.16459204,140.64,140.61,7.115]
[1740854521690,0.05059204,140.64,140.58,165.24222449]
[1740854521888,0.05059204,140.64,140.63,7.1142]
[1740854528295,0.05059204,140.64,140.61,7.115]
[1740854528886,0.05059204,140.64,140.6,7.1156]
[1740854529294,0.05059204,140.64,140.58,175.68222449]
[1740854529598,7.16459204,140.64,140.58,165.24222449]
[1740854530097,7.1144,140.63,140.58,165.24222449]
[1740854530294,0.05059204,140.64,140.58,165.24222449]
[1740854531698,7.16469204,140.64,140.58,165.24222449]
[1740854532099,0.05059204,140.64,140.62,7.1147]
[1740854532499,0.05059204,140.64,140.58,165.24222449]
[1740854532799,0.05059204,140.64,140.63,7.1142]
[1740854535909,150.4352394,140.68,140.67,7.1122]
[1740854536103,1.9408,140.73,140.63,1.8381]
[1740854536307,1.18694873,140.72,140.63,1.8381]
[1740854536603,7.111,140.7,140.63,1.8381]
[1740854537108,0.05153999,140.68,140.65,0.0455784]
[1740854537605,0.05153999,140.68,140.67,7.1122]
[1740854539005,7.1079,140.76,140.71,7.1101]
[1740854540106,0.04572402,140.75,140.72,0.05385701]
[1740854541308,7.1092,140.73,140.72,0.05385701]
[1740854545409,7.1089,140.74,140.72,0.05385701]
[1740854546814,7.1092,140.73,140.72,0.05385701]
[1740854547815,7.1108,140.7,140.68,7.1115]
[1740854548711,7.1101,140.72,140.68,7.1115]
[1740854549011,0.04807801,140.7,140.68,7.1579282]
[1740854549410,7.15877801,140.7,140.68,0.0464282]
[1740854550514,0.04807801,140.7,140.68,0.0464282]
[1740854550816,0.04807801,140.7,140.68,7.1581282]
[1740854551407,0.04807801,140.7,140.69,7.1112]
[1740854552607,1.8367,140.77,140.68,10.4864282]
[1740854552814,10.44,140.81,140.69,1.9733]
[1740854553014,1.18631677,140.8,140.69,1.9733]
[1740854553217,7.1063,140.79,140.75,7.1077]
[1740854553608,7.1058,140.8,140.73,10.44]
[1740854553804,0.05140842,140.78,140.76,0.04555786]
[1740854554212,1.18606147,140.82,140.76,0.04555786]
[1740854554420,0.0532687,140.78,140.76,0.04555786]
[1740854554802,0.0532687,140.78,140.77,7.1071]
[1740854557519,250.38,140.89,140.79,7.1058]
[1740854557711,4.92006525,140.88,140.79,7.1058]
[1740854557908,1.18586525,140.87,140.79,7.1058]
[1740854558108,7.1045,140.83,140.79,7.1058]
[1740854558308,3.7342,140.88,140.78,17.5465]
[1740854558503,1.18588725,140.87,140.78,17.5465]
[1740854558715,0.05424621,140.84,140.82,0.04832322]
[1740854560213,7.1041,140.83,140.82,0.04832322]
[1740854562927,21.38,140.82,140.63,141.9568038]
[1740854563115,26.40417056,140.81,140.63,141.9568038]
[1740854563315,1.18667056,140.8,140.63,141.9568038]
[1740854563517,250.24,140.79,140.63,149.0706038]
[1740854563718,11.78667056,140.78,140.63,149.0706038]
[1740854564022,7.1111,140.7,140.64,9.85799679]
[1740854564419,12.4311,140.71,140.66,0.04577535]
[1740854564621,0.04509851,140.68,140.66,0.04577535]
[1740854573333,0.04509851,140.68,140.67,7.1122]
[1740854578147,0.04509851,140.68,140.66,0.04577535]
[1740854578356,0.04509851,140.68,140.66,7.15827535]
[1740854578854,0.04509851,140.68,140.67,7.1122]
[1740854580354,7.15719851,140.68,140.66,0.04577535]
[1740854580542,10.56509851,140.68,140.55,117.8986313]
[1740854580746,10.52,140.68,140.56,82.51038753]
[1740854580958,7.1135,140.65,140.58,16.97449679]
[1740854581162,1.9171,140.67,140.58,16.97449679]
[1740854581345,1.9238,140.66,140.58,16.97449679]
[1740854581747,0.05369764,140.63,140.61,0.05328494]
[1740854587861,0.05369764,140.63,140.61,7.16838494]
[1740854590466,0.05369764,140.63,140.61,0.05328494]
[1740854590762,3.8992,140.74,140.62,1.8502]
[1740854590967,3.8992,140.74,140.63,1.8912]
[1740854591668,0.04512327,140.69,140.67,0.04561833]
[1740854593462,0.04512327,140.69,140.67,7.15771833]
[1740854594063,0.04512327,140.69,140.68,7.1117]
[1740854609880,7.1084,140.75,140.71,7.1098]
[1740854610472,7.1087,140.74,140.71,7.1098]
[1740854610874,7.15788504,140.74,140.71,7.15738871]
[1740854611170,0.04918504,140.74,140.71,7.15738871]
[1740854611575,7.15808504,140.74,140.71,7.15738871]
[1740854611878,0.04918504,140.74,140.71,0.04758871]
[1740854613182,7.1094,140.73,140.71,0.04758871]
[1740854613483,0.04918504,140.74,140.71,0.04758871]
[1740854614070,7.1093,140.73,140.71,7.15748871]
[1740854621887,7.15818504,140.74,140.72,7.1094]
[1740854622080,7.15818504,140.74,140.71,0.04758871]
[1740854622683,7.15818504,140.74,140.71,7.15748871]
[1740854624889,7.15818504,140.74,140.71,0.04758871]
[1740854625185,7.15818504,140.74,140.72,7.1097]
[1740854631289,0.04918504,140.74,140.72,7.1097]
[1740854631490,0.04918504,140.74,140.73,7.1092]
[1740854632683,0.04918504,140.74,140.71,0.04758871]
[1740854633683,0.04918504,140.74,140.72,7.1094]
[1740854638897,7.15788504,140.74,140.72,7.1094]
[1740854640595,0.04918504,140.74,140.72,7.1094]
[1740854641593,7.15788504,140.74,140.72,7.1094]
[1740854643297,7.1095,140.73,140.71,0.04758871]
[1740854644393,7.1097,140.72,140.71,0.04758871]
[1740854646791,7.1094,140.73,140.71,7.15748871]
[1740854646991,0.04918504,140.74,140.71,0.04758871]
[1740854648191,0.04918504,140.74,140.72,7.1096]
[1740854649498,7.15788504,140.74,140.72,7.1096]
[1740854651296,7.15788504,140.74,140.71,0.04758871]
[1740854651496,7.1092,140.73,140.71,7.15748871]
[1740854651696,0.04918504,140.74,140.71,0.04758871]
[1740854652202,7.1097,140.72,140.71,0.04758871]
[1740854655306,7.1093,140.73,140.71,0.04758871]
[1740854655601,0.04918504,140.74,140.71,0.04758871]
[1740854656406,7.1092,140.73,140.71,7.15748871]
[1740854657006,7.1092,140.73,140.71,0.04758871]
[1740854657398,7.1097,140.72,140.71,0.04758871]
[1740854658304,0.04918504,140.74,140.71,0.04758871]
[1740854658495,7.1094,140.73,140.71,7.15768871]
[1740854659406,7.1094,140.73,140.71,0.04758871]
[1740854660109,7.1094,140.73,140.71,7.15738871]
[1740854665809,7.15808504,140.74,140.71,0.04758871]
[1740854666014,0.04918504,140.74,140.71,0.04758871]
[1740854666513,0.04918504,140.74,140.72,7.1093]
[1740854667098,0.04918504,140.74,140.71,7.15748871]
[1740854667303,0.04918504,140.74,140.71,0.04758871]
[1740854668115,0.04918504,140.74,140.73,7.1092]
[1740854669613,0.04918504,140.74,140.71,0.04758871]
[1740854669813,0.04918504,140.74,140.72,7.1095]
[1740854672215,0.04918504,140.74,140.71,7.15748871]
[1740854673114,0.04918504,140.74,140.72,7.1096]
[1740854681628,0.04918504,140.74,140.73,7.1092]
[1740854689722,0.04918504,140.74,140.72,7.1094]
[1740854691029,7.15798504,140.74,140.72,7.1094]
[1740854691229,7.15798504,140.74,140.71,7.15748871]
[1740854693635,7.1093,140.73,140.71,7.15748871]
[1740854694225,0.04918504,140.74,140.71,7.15748871]
[1740854694426,7.1092,140.73,140.71,7.15748871]
[1740854694827,0.04918504,140.74,140.71,7.15748871]
[1740854695032,7.15808504,140.74,140.71,7.15748871]
[1740854695332,7.15808504,140.74,140.72,7.1096]
[1740854695529,0.04918504,140.74,140.72,7.1096]
[1740854696730,0.04918504,140.74,140.73,7.1092]
[1740854701837,0.04918504,140.74,140.71,0.04758871]
[1740854702231,0.04918504,140.74,140.73,7.1092]
[1740854705837,0.04918504,140.74,140.72,7.1096]
[1740854706930,0.04918504,140.74,140.72,7.1093]
[1740854708939,7.15788504,140.74,140.72,7.1093]
[1740854710443,0.04918504,140.74,140.73,7.1092]
[1740854711932,0.04918504,140.74,140.73,11.8810059]
[1740854712133,157.5409394,140.8,140.77,7.1067]
[1740854712332,7.1057,140.8,140.77,7.1067]
[1740854713240,7.16039392,140.8,140.77,7.15742516]
[1740854713636,7.16039392,140.8,140.78,7.1066]
[1740854713836,0.05469392,140.8,140.78,7.1066]
[1740854714639,0.05469392,140.8,140.79,7.1061]
[1740854716639,0.05469392,140.8,140.78,7.1064]
[1740854717243,0.05469392,140.8,140.79,7.1061]
[1740854718149,0.05469392,140.8,140.78,7.1064]
[1740854724257,0.05469392,140.8,140.79,7.1061]
[1740854730068,7.1033,140.85,140.78,12.3642]
[1740854730254,7.1033,140.85,140.82,7.1043]
[1740854731262,7.15600236,140.85,140.82,7.15860556]
[1740854731651,0.05270236,140.85,140.82,0.05430556]
[1740854732563,7.1041,140.83,140.82,0.05430556]
[1740854732764,1.9419,140.84,140.79,7.1059]
[1740854733661,12.3619,140.84,140.74,12.3295]
[1740854733868,12.3619,140.84,140.8,0.04651974]
[1740854734359,7.1051,140.81,140.8,0.04651974]
[1740854740274,7.105,140.82,140.8,0.04651974]
[1740854740571,1.90814475,140.83,140.8,0.04651974]
[1740854741071,7.1051,140.81,140.8,0.04651974]
[1740854742161,1.90814475,140.83,140.8,0.04651974]
[1740854742865,7.1051,140.81,140.8,0.04651974]
[1740854743774,7.1049,140.82,140.8,0.04651974]
[1740854744074,1.90814475,140.83,140.8,7.15181974]
[1740854744273,0.04704475,140.83,140.8,0.04651974]
[1740854744670,0.04704475,140.83,140.81,7.1048]
[1740854744863,0.04704475,140.83,140.8,0.04651974]
[1740854745875,0.04704475,140.83,140.81,7.1051]
[1740854746071,0.04704475,140.83,140.8,0.04651974]
[1740854746777,0.04704475,140.83,140.81,7.1048]
[1740854747376,0.04704475,140.83,140.8,7.15181974]
[1740854747576,0.04704475,140.83,140.8,0.04651974]
[1740854748168,0.04704475,140.83,140.81,7.1051]
[1740854749578,7.15124475,140.83,140.8,7.15191974]
[1740854750680,0.04704475,140.83,140.81,7.105]
[1740854751575,0.04704475,140.83,140.82,7.1046]
[1740854752877,0.04704475,140.83,140.81,7.1048]
[1740854753278,0.04704475,140.83,140.8,0.04651974]
[1740854753478,7.15144475,140.83,140.8,7.15161974]
[1740854753983,7.15144475,140.83,140.81,7.105]
[1740854754465,7.1051,140.82,140.8,0.04651974]
[1740854754976,7.1049,140.82,140.8,0.04651974]
[1740854755983,7.1049,140.82,140.8,7.15211974]
[1740854756578,7.1049,140.82,140.8,0.04651974]
[1740854757185,7.15134475,140.83,140.8,7.15171974]
[1740854757384,0.04704475,140.83,140.8,0.04651974]
[1740854757883,0.04704475,140.83,140.81,7.1051]
[1740854758083,0.04704475,140.83,140.8,0.04651974]
[1740854758284,0.04704475,140.83,140.81,7.1047]
[1740854758584,7.15114475,140.83,140.81,7.1047]
[1740854758978,0.04704475,140.83,140.82,7.1046]
[1740854767091,0.04704475,140.83,140.8,0.04651974]
[1740854767684,7.105,140.82,140.8,0.04651974]
[1740854769996,7.105,140.82,140.8,7.15211974]
[1740854771186,0.04704475,140.83,140.81,7.1048]
[1740854772483,0.04704475,140.83,140.8,0.04651974]
[1740854772682,0.04704475,140.83,140.81,7.1051]
[1740854773691,0.04704475,140.83,140.8,0.04651974]
[1740854774588,7.1051,140.81,140.8,0.04651974]
[1740854777680,16.0965,140.82,140.75,4.78117165]
[1740854777896,16.0965,140.82,140.72,64.78110537]
[1740854778195,1.18622525,140.81,140.72,9.85799679]
[1740854778385,7.1078,140.76,140.73,7.1089]
[1740854778588,16.0965,140.82,140.72,9.85799679]
[1740854778791,1.18635577,140.81,140.72,9.85799679]
[1740854778996,0.05274459,140.78,140.76,0.05140372]
[1740854779694,7.1074,140.77,140.76,0.05140372]
[1740854780288,0.05274459,140.78,140.76,0.05140372]
[1740854780894,0.05274459,140.78,140.77,7.1071]
[1740854784295,0.05274459,140.78,140.76,0.05140372]
[1740854785000,0.6907558,140.84,140.76,0.05140372]
[1740854785297,0.6907558,140.84,140.77,7.1069]
[1740854785795,7.1054,140.81,140.77,7.1069]
[1740854786196,0.0513426,140.8,140.78,0.04754789]
[1740854786395,0.0513426,140.8,140.78,7.15414789]
[1740854786700,0.0513426,140.8,140.78,0.04754789]
[1740854786895,0.0513426,140.8,140.78,7.15394789]
[1740854787199,0.0513426,140.8,140.78,0.04754789]
[1740854788302,0.0513426,140.8,140.78,7.15394789]
[1740854791699,7.1061,140.79,140.78,0.04754789]
[1740854791908,1.18636649,140.79,140.71,4.78277412]
[1740854792094,152.3336394,140.79,140.7,39.90686315]
[1740854792399,7.1089,140.74,140.71,7.1099]
[1740854793093,7.15689654,140.74,140.71,7.16367404]
[1740854793803,7.1093,140.73,140.71,0.05377404]
[1740854794305,7.1097,140.72,140.71,0.05377404]
[1740854797014,7.1093,140.73,140.71,0.05377404]
[1740854799295,150.4352394,140.72,140.63,162.86656043]
[1740854799498,3.07283683,140.71,140.6,51.64390188]
[1740854799703,11.60703683,140.7,140.6,51.64390188]
[1740854799903,10.42,140.7,140.6,51.64390188]
[1740854800206,7.1125,140.67,140.63,7.1141]
[1740854800402,0.05019224,140.66,140.64,0.04864458]
[1740854801204,0.05019224,140.66,140.64,7.16224458]
[1740854801602,7.16299224,140.66,140.64,0.04864458]
[1740854802710,0.05019224,140.66,140.64,0.04864458]
[1740854802902,7.1132,140.65,140.64,0.04864458]
[1740854804599,7.1157,140.61,140.57,7.117]
[1740854805710,0.05444868,140.6,140.58,0.05263099]
[1740854807206,7.17034868,140.6,140.58,0.05263099]
[1740854807598,0.05444868,140.6,140.58,0.05263099]
[1740854807803,7.1162,140.59,140.58,0.05263099]
[1740854808005,10.47444868,140.6,140.52,2.71146882]
[1740854808211,7.1176,140.57,140.54,7.1188]
[1740854808406,10.42,140.6,140.52,2.71146882]
[1740854808612,10.42,140.6,140.52,0.78896882]
[1740854808812,7.1181,140.56,140.53,7.1191]
[1740854809010,7.1181,140.56,140.55,0.02389909]
[1740854809507,7.16778776,140.57,140.55,0.02389909]
[1740854811221,0.05028776,140.57,140.55,0.02389909]
[1740854811824,0.05028776,140.57,140.55,7.14169909]
[1740854813623,7.16758776,140.57,140.55,0.02389909]
[1740854815721,7.16758776,140.57,140.55,7.14209909]
[1740854815917,0.05028776,140.57,140.55,7.14209909]
[1740854817325,7.16758776,140.57,140.55,7.14209909]
[1740854818631,0.05028776,140.57,140.55,7.14209909]
[1740854820033,7.16768776,140.57,140.55,0.02389909]
[1740854820334,0.05028776,140.57,140.55,0.02389909]